Cogmind - Beta 16 --- EXPLORER MODE // 2026.01.21 @ 14:59:49 Player: K.K.Y. Result: Destroyed by 6T-XYB(R) with Subdweller Machine Gun Performance ------------- Evolutions (0) 0 Regions Visited (3) 600 Robots Destroyed (25) 125 Value Destroyed (357) 357 Prototype IDs (0) 0 Alien Tech Used (0) 0 Bonus (-151) -151 TOTAL SCORE: 931 Bonus ------- Friendly Fire -151 Cogmind --------- Core Integrity 0/250 Matter 281/300 Energy 90/100 System Corruption 0% Temperature Cool (6) Movement Core (500) Ox9 Location -10/Subcaves Parts ------- > --- POWER (1) -------- (None) > --- PROPULSION (2) --- (None) > --- UTILITY (3) ------ Large Storage Unit > --- WEAPON (2) ------- Bore Cannon > --- INVENTORY (15) --- Light Angular Momentum Engine Light Treads Light Treads Improved Heat Sink Improved Heat Sink Improved Heat Sink High-capacity Storage Unit Experimental Sensor Array Improved Terrain Scanner Mining Laser Multitool Peak State ------------ > --- POWER ------------ Ion Engine > --- PROPULSION ------- Light Treads > --- UTILITY ---------- Large Storage Unit Structural Scanner > --- WEAPON ----------- Beamcaster Makeshift Sword > --- INVENTORY -------- Light Angular Momentum Engine Light Treads Light Treads Improved Heat Sink Improved Heat Sink Improved Heat Sink High-capacity Storage Unit Experimental Sensor Array Improved Terrain Scanner Mining Laser Multitool [Rating: 16] Favorites ----------- Power Ion Engine Engine Ion Engine Propulsion Light Treads Treads Light Treads Utility Sensor Array Device Sensor Array Storage Large Storage Unit Weapon Small Laser Energy Gun Small Laser Ballistic Gun Assault Rifle Ballistic Cannon Bore Cannon Slashing Weapon Makeshift Sword Build | -11 -10 -10 -10 ------- Run | Yrd Mat Min Sub Slots Evolved 1 | . 1 . . Power . | . . . . Propulsion . | . . . . Utility 1 | . 1 . . Weapon . | . . . . Parts Attached 15 | 6 5 1 3 Power 2 | 1 1 . . Engine 2 | 1 1 . . Core . | . . . . Reactor . | . . . . Propulsion 3 | 2 1 . . Treads 3 | 2 1 . . Leg . | . . . . Wheel . | . . . . Hover . | . . . . Flight . | . . . . Utility 5 | 1 3 1 . Device 4 | 1 2 1 . Storage 1 | . 1 . . Processor . | . . . . Hackware . | . . . . Protection . | . . . . Artifact . | . . . . Weapon 5 | 2 . . 3 Energy Gun 2 | 1 . . 1 Energy Cannon . | . . . . Ballistic Gun 1 | 1 . . . Ballistic Cannon 1 | . . . 1 Launcher . | . . . . Special Weapon . | . . . . Impact Weapon . | . . . . Slashing Weapon 1 | . . . 1 Piercing Weapon . | . . . . Special Melee Weapon . | . . . . Unidentified Prototypes . | . . . . Parts Lost 9 | . . . 9 Power 1 | . . . 1 Propulsion 2 | . . . 2 Utility 2 | . . . 2 Weapon 4 | . . . 4 Highest Loss Streak 9 | . . . 9 To Critical Strikes . | . . . . Average Backups 7 | 1 4 9 10 Power . | . . . . Propulsion 1 | . 1 2 2 Utility 3 | 1 2 5 6 Weapon 1 | . 1 1 1 Tool/Special . | . . . . Unused Backups 10 | . 1 . 9 Power . | . . . . Propulsion 2 | . 1 . 1 Utility 6 | . . . 6 Weapon 1 | . . . 1 Tool/Special 1 | . . . 1 Average Slot Usage (%) 94 | . 88 100 92 Engine 12 | . 12 12 12 Treads 24 | . 25 25 22 Device 23 | . 21 25 21 Storage 8 | . 4 12 12 Energy Gun 11 | . 12 12 11 Ballistic Gun 11 | . 12 12 8 Peak Build Rating 16 | 6 9 11 16 Average Rating 8 | 4 7 9 10 On Entrance 6 | . 6 9 10 Avg Prop Armor Cover (%) . | . . . . Naked Turns . | . . . . Heaviest Build 33 | 9 30 30 33 Greatest Support 40 | 40 40 40 40 Greatest Overweight (x) 1 | . . . 1 Average Overweight (x) . | . . . . Largest Inventory Capacity 15 | 5 15 15 15 Average Capacity 11 | 5 8 15 15 Most Carried 12 | 5 6 11 12 Average Carried 7 | 1 4 9 10 Final Capacity 15 | 5 15 15 15 Final Carried 11 | 3 6 10 11 Class Distribution -------------------- 100% | Hacker-Mutant Dominant Class ---------------- Hacker-Mutant | -10/Materials Hacker-Mutant | -10/Mines Hacker-Mutant | -10/Subcaves Resources | -11 -10 -10 -10 ----------- Run | Yrd Mat Min Sub Matter Collected 511 | 258 176 58 19 Remotely . | . . . . Salvage Created 811 | 123 438 179 71 Parts 60 | 8 34 14 4 Haulers Intercepted 1 | . 1 . . Recyclers Shooed . | . . . . Parts Field Recycled . | . . . . Retrieved Matter . | . . . . Parts Self-Destructed . | . . . . Prevented . | . . . . Parts Restored . | . . . . Kills | -11 -10 -10 -10 ------- Run | Yrd Mat Min Sub Combat Hostiles Destroyed 11 | . 8 2 1 Guns 11 | . 8 2 1 Classes Destroyed 9 | 2 5 . 2 Builder 3 | . 1 2 . Tunneler 4 | 2 2 . . Hauler 1 | . 1 . . Recycler 3 | 1 1 1 . Watcher 2 | . 2 . . Swarmer 6 | . 4 2 . Grunt 4 | . 4 . . Artisan 1 | . . . 1 Subdweller 1 | . . . 1 Thug 1 | . . 1 . Best Kill Streak 4 | 3 4 2 1 Combat Bots Only 3 | . 3 2 1 Max Kills in Single Turn 2 | 1 2 1 1 Gunslinging . | . . . . Exploded . | . . . . Melee . | . . . . Uniques/NPCs Destroyed . | . . . . Combat | -11 -10 -10 -10 -------- Run | Yrd Mat Min Sub Hostile Shots Fired 129 | . 41 9 79 Missed 31 | . 11 3 17 Hits 98 | . 30 6 62 Projectile 98 | . 30 6 62 Critical Strikes 3 | . 1 . 2 Damage Taken 1079 | . 231 24 824 Core 254 | . 44 4 206 Absorbed by Shields . | . . . . Ignored by Resistances 658 | . 148 20 490 Core Remaining (%) 100 | 100 . . . Volleys Fired 71 | 4 34 16 17 Largest 2 | 2 2 2 2 Hottest 75 | 60 60 60 75 Shots Fired 131 | 8 68 30 25 Gun 129 | 8 68 30 23 Cannon 2 | . . . 2 Launcher . | . . . . Special . | . . . . Kinetic 64 | 4 34 16 10 Thermal 67 | 4 34 14 15 Explosive . | . . . . Electromagnetic . | . . . . Robot Hit Streak 38 | 5 38 11 16 Robot Miss Streak 2 | . 2 1 1 Penetration Max . | . . . . Secondary Targets . | . . . . Shots Hit Robots 113 | 5 57 26 25 Core Hits 45 | 4 26 9 6 Critical Kills . | . . . . Critical Parts Destroyed . | . . . . Critical Strikes 2 | . . . 2 Destroy 2 | . . . 2 Melee Attacks 2 | . . . 2 Impact . | . . . . Slashing 2 | . . . 2 Piercing . | . . . . Sneak Attacks . | . . . . Combat Hostiles . | . . . . Follow-up Attacks . | . . . . Damage Inflicted 1476 | 55 699 307 415 Guns 1362 | 55 699 307 301 Cannons 37 | . . . 37 Explosions . | . . . . Melee 68 | . . . 68 Ramming 9 | . . . 9 Kinetic 645 | 21 346 166 112 Thermal 754 | 34 353 141 226 Explosive . | . . . . Electromagnetic . | . . . . Impact . | . . . . Slashing 68 | . . . 68 Piercing . | . . . . Highest Corruption . | . . . . Average Corruption . | . . . . Corruption Purged . | . . . . Corruption Blocked . | . . . . Overload Shots . | . . . . Overflow Damage . | . . . . Projectiles . | . . . . Explosions . | . . . . Melee . | . . . . Knockbacks 1 | . . . 1 Impact 1 | . . . 1 Kinetic . | . . . . Secondary . | . . . . Self-Inflicted Damage . | . . . . Shots . | . . . . Rammed 1 | . . . 1 Targets Rammed 1 | . . . 1 Kicked . | . . . . Crushed . | . . . . Highest Temperature 123 | . 123 . 54 Average Temperature 47 | . 52 . 19 Received Heat Transfer 468 | . 213 . 255 Siege Activations . | . . . . Martial Activations . | . . . . Shielding Activations . | . . . . Robots Disrupted . | . . . . Combat Hostiles . | . . . . Robots Corrupted . | . . . . Combat Hostiles . | . . . . Parts Fried . | . . . . Impact Corruptions . | . . . . Robots Melted . | . . . . Combat Hostiles . | . . . . Parts Melted . | . . . . Heat Transferred 1647 | 75 800 325 447 Parts Sabotaged . | . . . . Parts Stolen . | . . . . Parts Stripped . | . . . . Power Chain Reactions . | . . . . Alert | -11 -10 -10 -10 ------- Run | Yrd Mat Min Sub Maximum Alert Level . | . . . . Low Security (%) 100 | 100 100 100 . Level 1 . | . . . . Level 2 . | . . . . Level 3 . | . . . . Level 4 . | . . . . Level 5 . | . . . . High Security . | . . . . Max Security . | . . . . Peak Influence 90 | 10 90 50 . Initial . | . . . . Average 4 | 2 7 1 . Influence Increases 363 | 15 283 65 . Destroy 0b10 Robot/C 200 | . 160 40 . Destroy 0b10 Robot/NC 65 | 15 35 15 . Destroy Leader 56 | . 46 10 . Successful Hack 26 | . 26 . . Destroy Structure 1 | . 1 . . Lose Combat Pursuer 15 | . 15 . . Influence Decreases 363 | 15 283 65 . Time Decay 363 | 15 283 65 . Squads Dispatched . | . . . . Investigation . | . . . . Extermination . | . . . . Reinforcement . | . . . . Assault . | . . . . Garrison . | . . . . Intercept . | . . . . Searches Triggered . | . . . . Construction Impeded . | . . . . Haulers Reinforced . | . . . . Active Scanning Responses . | . . . . Cargo Convoy Interrupts . | . . . . Stealth | -11 -10 -10 -10 --------- Run | Yrd Mat Min Sub Distress Signals 1 | . 1 . . Communications Jammed . | . . . . Distress Signals . | . . . . Times Spotted 26 | . 15 2 9 Peak Tracking Total 8 | . 3 2 8 Tactical Retreats 1 | . 1 . . Traps | -11 -10 -10 -10 ------- Run | Yrd Mat Min Sub Traps Triggered . | . . . . Indirectly . | . . . . Trap Hack Attempts . | . . . . Triggered . | . . . . Disarmed 3 | . 3 . . Reprogrammed . | . . . . Reused . | . . . . Traps Extracted . | . . . . Installed 1 | . . 1 . Triggered . | . . . . Machines | -11 -10 -10 -10 ---------- Run | Yrd Mat Min Sub Machines Disabled . | . . . . Max in Single Turn . | . . . . Machines Repaired . | . . . . Machines Dismantled . | . . . . Machines Sabotaged . | . . . . Overloaded Fab Kills . | . . . . Hacking | -11 -10 -10 -10 --------- Run | Yrd Mat Min Sub Machines Accessed 11 | . 10 1 . Terminals 9 | . 8 1 . Fabricators . | . . . . Repair Stations . | . . . . Recycling Units 2 | . 2 . . Scanalyzers . | . . . . Garrison Access . | . . . . Total Hacks 19 | . 18 1 . Successful 18 | . 17 1 . Failed 1 | . 1 . . Catastrophic . | . . . . Database Lockouts . | . . . . Manual 16 | . 15 1 . Terminals 16 | . 15 1 . Fabricators . | . . . . Repair Stations . | . . . . Recycling Units 3 | . 3 . . Scanalyzers . | . . . . Garrison Access . | . . . . Terminal Hacks 3 | . 3 . . Locate Traps 1 | . 1 . . Disarm Traps 2 | . 2 . . Fabricator Hacks . | . . . . Repair Station Hacks . | . . . . Recycling Unit Hacks 2 | . 2 . . Retrieve Components 2 | . 2 . . Scanalyzer . | . . . . Garrison Access Hacks . | . . . . Unauthorized Hacks 10 | . 9 1 . Terminals 9 | . 8 1 . Botnet 9 | . 8 1 . Fabricators . | . . . . Repair Stations . | . . . . Recycling Units 1 | . 1 . . Reject 1 | . 1 . . Scanalyzers . | . . . . Garrison Access . | . . . . Data Cores Recovered . | . . . . Used . | . . . . Hacking Detections 6 | . 5 1 . Full Trace Events . | . . . . Feedback Events . | . . . . Feedback Blocked . | . . . . Robot Schematics Acquired . | . . . . Robots Built . | . . . . Authchips . | . . . . Time . | . . . . Total Robot Build Rating . | . . . . Part Schematics Acquired . | . . . . Parts Built . | . . . . Authchips . | . . . . Time . | . . . . Total Part Build Rating . | . . . . Part Studies Acquired . | . . . . Parts Repaired . | . . . . Time . | . . . . Parts Recycled . | . . . . Recycled Matter . | . . . . Retrieved Matter . | . . . . Retrieved Components 11 | . 11 . . Parts Scanalyzed . | . . . . Part Schematics Acquired . | . . . . Parts Damaged . | . . . . Bothacking | -11 -10 -10 -10 ------------ Run | Yrd Mat Min Sub Used RIF Installer . | . . . . Robots Hacked . | . . . . Non-combat . | . . . . Combat . | . . . . Robot Hacks Applied . | . . . . Relay Couplers Released . | . . . . Fabnet Peak Effective % . | . . . . Robots Rewired . | . . . . Allies Hacked . | . . . . Hacks Repelled . | . . . . Allies | -11 -10 -10 -10 -------- Run | Yrd Mat Min Sub Total Allies . | . . . . Largest Group . | . . . . Highest-Rated Group . | . . . . Highest-Rated Ally . | . . . . Total Orders . | . . . . Ally Attacks . | . . . . Total Damage . | . . . . Kills . | . . . . Allies Corrupted . | . . . . Allies Melted . | . . . . Intel | -11 -10 -10 -10 ------- Run | Yrd Mat Min Sub Active Infowar (turns) 3434 | 64 1616 1613 141 Sensors 3398 | 64 1616 1613 105 Structural 2959 | . 1205 1613 141 Robot Analysis Total . | . . . . Derelict Logs Recovered 1 | . . . 1 Drone Launches . | . . . . Drone Recoveries . | . . . . Exploration | -11 -10 -10 -10 ------------- Run | Yrd Mat Min Sub Turns Passed 3455 | 80 1616 1613 146 Spaces Moved 1979 | 46 924 952 57 Core 20 | 20 . . . Treads 1959 | 26 924 952 57 Legs . | . . . . Wheels . | . . . . Hover . | . . . . Flight . | . . . . Fastest Speed 50 | 50 160 160 160 Average Speed 158 | 112 160 160 161 Slowest Speed 240 | 160 160 160 240 Overloaded Moves . | . . . . Propulsion Burnouts . | . . . . Robots Hopped . | . . . . Potential Cave-ins . | . . . . Cave-ins Triggered . | . . . . Exploration Rate (%) 52 | 4 99 99 7 Regions Visited 3 Branch Regions 2 Pre-discovered Areas 1 | . . . 1 Known Exits Taken 3 | 1 1 1 . Unknown Exits Taken . | . . . . Scrap Searched . | . . . . Spaces Dug . | . . . . Terrain Destroyed . | . . . . Melee . | . . . . Projectile . | . . . . AOE . | . . . . Terrain Rammed . | . . . . Walls Destroyed . | . . . . Machines Disabled . | . . . . Actions | -11 -10 -10 -10 --------- Run | Yrd Mat Min Sub Total 2158 | 68 993 1013 84 Wait 57 | . 23 34 . Move 1976 | 45 923 951 57 Hop . | . . . . Pick Up 26 | 10 5 7 4 Fast Attach 2 | . 2 . . Attach 10 | 7 . . 3 Detach 1 | 1 . . . Swap 4 | . 3 1 . Drop 7 | 1 3 3 . Fire 71 | 4 34 16 17 Melee 2 | . . . 2 Ram . | . . . . Kick . | . . . . Crush 1 | . . . 1 Escape Stasis . | . . . . Rewire . | . . . . Trap 1 | . . 1 . Miscellaneous . | . . . . Route ------- -11/Scrapyard -10/Materials (discovered 5 exits: *Mat x3 / *Min x2) -10/Mines (discovered 3 exits: *Mat x2 / *Sub) -10/Subcaves (discovered 1 exit: [Scr]) History --------- Turn | Location | Event 10 | -11/Scrapyard | Identified exit to Materials 10 | -11/Scrapyard | Discovered exit to Materials (range 15) 81 | -11/Scrapyard | Entered Materials 81 | -10/Materials | Evolved 1 slot: Utility x1 144 | -10/Materials | Identified exit to Mines 144 | -10/Materials | Discovered exit to Mines (range 9) 239 | -10/Materials | Identified exit to Materials 239 | -10/Materials | Discovered exit to Materials (range 3) 271 | -10/Materials | Discovered exit to Mines (range 16) 310 | -10/Materials | Build established: Hacker-Mutant 743 | -10/Materials | Discovered exit to Materials (range 3) 812 | -10/Materials | Discovered exit to Materials (range 14) 1697 | -10/Materials | Entered Mines 1717 | -10/Mines | A weapon hastily lodged in a ceiling crevice suddenly fell to the ground 1752 | -10/Mines | Met a Derelict bent on vengeance 1831 | -10/Mines | Identified exit to Subcaves 1831 | -10/Mines | Discovered exit to Subcaves (range 7) 1894 | -10/Mines | Discovered exit to Materials (range 16) 2027 | -10/Mines | Found a damaged Exp. Sensor Array with a note attached 2031 | -10/Mines | Found Prototype Device 2163 | -10/Mines | Discovered exit to Materials (range 7) 2889 | -10/Mines | Found a hidden stash of uninstalled traps 3310 | -10/Mines | Entered Subcaves 3311 | -10/Subcaves | Approached by a straggling Scientist 3397 | -10/Subcaves | Scientist uncovered a shortcut to Scraptown 3409 | -10/Subcaves | Ambushed by swarm of Subdwellers 3415 | -10/Subcaves | Ambushed by angry Subdweller bent on revenge 3443 | -10/Subcaves | Core integrity fell below 50% 3451 | -10/Subcaves | Core integrity fell below 20% 3456 | -10/Subcaves | Destroyed by 6T-XYB(R) with Subdweller Machine Gun Last Messages --------------- to Scrap Shield. 03435_ Lgt. Treads destroyed. 03441_ 6T-XYB(R) affixes Scrap Shield Fragment to Scrap Shield. 03442_ Acquired Lgt. Angular Momentum Engine. 03443_ YW-EOP(R) affixes Scrap Shield Fragment to Scrap Shield. 03445_ Acquired Bore Cannon. 03448_ Lgt. Treads destroyed. 03450_ VH-YJZ(R) destroyed. 03451_ Beamcaster destroyed. 03451_ Structural Scanner destroyed. 03452_ Ion Engine destroyed. 03453_ HV Slug penetrates T5-RMB(R). 03453_ T5-RMB(R) suffers critical hit (Destroy). 03453_ HV Slug penetrates Twisted Machinery. 03454_ Mak. Sword destroyed. 03454_ G7-BNI(R) affixes Scrap Shield Fragment to Scrap Shield. 03455_ T5-RMB(R) suffers critical hit (Destroy). Map ----- +----------------------------------------------------+ | ????????????????????????????????????????????## # # | | ????????????????????????????????????????????### | | ????????????????????????????????????????????## | | ????????????????????????????????????????????### ## | | ????????????????????????????????????????????###=## | | ????????????????????????????????????????????###% " | | ???????????????????????????????????????????#### # | | ??????????????????????????????????????????#### ## | | ??????????????????????????????????????????### # | | ??????????????????????????????????????????## # | | ??????????????????????????????????????????## | | ??????????????????????????????????????????## # | | ??????????????????????????????????????????## # | | ??????????????????????????????????????????## | | ??????????????????????????????????????###### | | ????????????????????????????################ # | | ?????????????????????????############### ### | | ????????????????????????###### ### ##### | | ????????????????????????### ######? | | ????????????????????????## "" ###???? | | ????????????????????????##"""" ##???? | | ????????????????????????##R* % ##########???? | | ???????????????????????###%R = ## ##########???? | | ???????????????????????###%R###### ###??????????? | | ???????????????????????## !###### ##??????????? | | ???????????????????????##@ R%#### ##??????????? | | ????????????????????## "#%!R ##### ??????????? | | ????????????????????## ""!&=###### ????????? | | ????????????????????###""%R####?# # # ????????? | | ????????????????????#####% ;##??? ###????????? | | ?????????????????????##### ##????> ????????? | | ???????????????????????######???? ??????????? | | ????????????????????????#####??? ???????????? | | ????????????????????????????????? ????????????? | | ?????????????????????????????????????????????????? | | ?????????????????????????????????????????????????? | | ?????????????????????????????????????????????????? | | ?????????????????????????????????????????????????? | | ?????????????????????????????????????????????????? | | ?????????????????????????????????????????????????? | | ?????????????????????????????????????????????????? | | ?????????????????????????????????????????????????? | | ?????????????????????????????????????????????????? | | ?????????????????????????????????????????????????? | | ?????????????????????????????????????????????????? | | ?????????????????????????????????????????????????? | | ?????????????????????????????????????????????????? | | ?????????????????????????????????????????????????? | | ?????????????????????????????????????????????????? | | ?????????????????????????????????????????????????? | +----------------------------------------------------+ Best States ------------- Heat Dissipation 25 Energy Generation 10 Energy Capacity 250 Matter Stores 300 Matter Capacity 300 Sight Range 16 Robot Scan Range 14 Terrain Scan Density 10 Resistance: KI 35 Resistance: TH 35 Resistance: EX 35 Resistance: EM 35 Resistance: I 35 Resistance: S 35 Resistance: P 35 Evasion (%) 50 Recoil Reduction 2 Offensive Hacking 20 Item Schematics ----------------- None Robot Schematics ------------------ None Fabricated ------------ Nothing Repaired ---------- Nothing Studied --------- None Alien Tech Used ----------------- None Achievements -------------- None Challenges ------------ None Game ------ Seed HugeDynamicDerivative Manual? 0 Play Time 00:13:57 Cumulative 300.0 hours Start 2026.01.21 @ 14:44:11 End 2026.01.21 @ 14:59:49 Sessions 1 Manual Loads 0 Difficulty Explorer Special Mode None Game No. 465 Rogue 0 Adventurer 0 Explorer 465 Win Type - Total 0 Types 0/0/0/0/0/0/0/0/0/0 Lore% 76 Gallery% 70 Achievement% 55 Wizard Run 0 Options --------- Layout 1 ASCII 0 Keyboard 0 Movement Mouse Keybinds 1 Fullscreen 1 Font 24/Smallcaps Map View 50x35 Zoom Use 0% Tactical HUD 1 Map Filters NONE Filters NONE Steam 1 RUN: 57b4b405-b843-47f5-9d7b-5cd8f7f5cab2